[Event "Titled Tuesday Blitz May 16 Early 2023"]
[White "Sieciechowicz, Marcin"]
[Black "Dudzinski, Pawel"]
[WhiteFideId "1130170"]
[BlackFideId "1117890"]
[WhiteElo "2302"]
[BlackElo "2099"]
[Result "1-0"]
[Round "01"]
[TimeControl "180+2"]
[Date "2023.05.16"]
[WhiteClock "0:01:04"]
[BlackClock "0:00:43"]

1. d4 {[%clk 0:03:00]}  d5 {[%clk 0:02:59]} 2. c4 {[%clk 0:02:59]}  c6 {[%clk 0:02:59]} 3. Nf3 {[%clk 0:02:59]}  e6 {[%clk 0:03:00]} 4. Nc3 {[%clk 0:02:59]}  f5 {[%clk 0:03:00]} 5. Bf4 {[%clk 0:02:59]}  Nf6 {[%clk 0:03:00]} 6. e3 {[%clk 0:02:59]}  Be7 {[%clk 0:03:01]} 7. h3 {[%clk 0:02:59]}  O-O {[%clk 0:03:01]} 8. Be2 {[%clk 0:03:00]}  Ne4 {[%clk 0:02:58]} 9. Qc2 {[%clk 0:02:59]}  Bd7 {[%clk 0:02:52]} 10. Ne5 {[%clk 0:02:59]}  Be8 {[%clk 0:02:52]} 11. Bh2 {[%clk 0:02:57]}  Nd7 {[%clk 0:02:51]} 12. Rc1 {[%clk 0:02:53]}  Nxe5 {[%clk 0:02:51]} 13. Bxe5 {[%clk 0:02:54]}  Bd6 {[%clk 0:02:51]} 14. Bxd6 {[%clk 0:02:51]}  Qxd6 {[%clk 0:02:50]} 15. O-O {[%clk 0:02:52]}  Bg6 {[%clk 0:02:40]} 16. f4 {[%clk 0:02:38]}  Ng3 {[%clk 0:02:12]} 17. Rfe1 {[%clk 0:02:38]}  Bh5 {[%clk 0:02:12]} 18. Bxh5 {[%clk 0:02:35]}  Nxh5 {[%clk 0:02:13]} 19. a3 {[%clk 0:02:26]}  Ng3 {[%clk 0:02:10]} 20. c5 {[%clk 0:02:17]}  Qe7 {[%clk 0:02:09]} 21. b4 {[%clk 0:02:17]}  a6 {[%clk 0:02:08]} 22. a4 {[%clk 0:02:17]}  Rf6 {[%clk 0:02:03]} 23. b5 {[%clk 0:02:16]}  axb5 {[%clk 0:02:03]} 24. axb5 {[%clk 0:02:17]}  Rg6 {[%clk 0:02:03]} 25. Ra1 {[%clk 0:02:11]}  Rxa1 {[%clk 0:01:57]} 26. Rxa1 {[%clk 0:02:12]}  h6 {[%clk 0:01:40]} 27. b6 {[%clk 0:02:03]}  Qh4 {[%clk 0:01:37]} 28. Qf2 {[%clk 0:02:02]}  Qh5 {[%clk 0:01:33]} 29. Kh2 {[%clk 0:01:57]}  Ne4 {[%clk 0:01:18]} 30. Nxe4 {[%clk 0:01:56]}  fxe4 {[%clk 0:01:19]} 31. Ra7 {[%clk 0:01:51]}  Rf6 {[%clk 0:01:10]} 32. Rxb7 {[%clk 0:01:49]}  Rf8 {[%clk 0:01:11]} 33. Qg3 {[%clk 0:01:45]}  Rf7 {[%clk 0:01:06]} 34. Rb8+ {[%clk 0:01:15]}  Kh7 {[%clk 0:00:57]} 35. Qg4 {[%clk 0:01:14]}  Qxg4 {[%clk 0:00:50]} 36. hxg4 {[%clk 0:01:15]}  g5 {[%clk 0:00:51]} 37. fxg5 {[%clk 0:01:14]}  Rf1 {[%clk 0:00:49]} 38. gxh6 {[%clk 0:01:08]}  Kxh6 {[%clk 0:00:50]} 39. b7 {[%clk 0:01:05]}  Rb1 {[%clk 0:00:49]} 40. Rh8+ {[%clk 0:01:05]}  Kg5 {[%clk 0:00:49]} 41. b8=Q {[%clk 0:01:05]}  Rxb8 {[%clk 0:00:48]} 42. Rxb8 {[%clk 0:01:05]}  e5 {[%clk 0:00:49]} 43. dxe5 {[%clk 0:01:03]}  d4 {[%clk 0:00:50]} 44. exd4 {[%clk 0:01:03]}  e3 {[%clk 0:00:50]} 45. Kg3 {[%clk 0:01:04]}  e2 {[%clk 0:00:51]} 46. Kf2 {[%clk 0:01:04]}  e1=Q+ {[%clk 0:00:43]} 47. Kxe1 {[%clk 0:01:04]} 1-0


[Site "https://www.chess.com"]

[Event "Titled Tuesday Blitz May 16 Early 2023"]
[White "Di Benedetto, Edoardo"]
[Black "Koepke, Christian"]
[WhiteFideId "875740"]
[BlackFideId "4655737"]
[WhiteElo "2296"]
[BlackElo "2204"]
[Result "1-0"]
[Round "01"]
[TimeControl "180+2"]
[Date "2023.05.16"]
[WhiteClock "0:00:21"]
[BlackClock "0:00:00"]

1. d4 {[%clk 0:02:59]}  d5 {[%clk 0:02:59]} 2. c4 {[%clk 0:03:00]}  e5 {[%clk 0:03:00]} 3. cxd5 {[%clk 0:02:53]}  Qxd5 {[%clk 0:02:58]} 4. dxe5 {[%clk 0:02:50]}  Qxd1+ {[%clk 0:02:57]} 5. Kxd1 {[%clk 0:02:50]}  Nc6 {[%clk 0:02:56]} 6. Nf3 {[%clk 0:02:51]}  Bf5 {[%clk 0:02:53]} 7. a3 {[%clk 0:02:47]}  O-O-O+ {[%clk 0:02:52]} 8. Nbd2 {[%clk 0:02:42]}  Nge7 {[%clk 0:02:30]} 9. Ke1 {[%clk 0:02:26]}  Ng6 {[%clk 0:02:25]} 10. e4 {[%clk 0:02:23]}  Be6 {[%clk 0:02:12]} 11. Bc4 {[%clk 0:02:12]}  Ngxe5 {[%clk 0:01:54]} 12. Bxe6+ {[%clk 0:02:07]}  fxe6 {[%clk 0:01:55]} 13. Nxe5 {[%clk 0:02:06]}  Nxe5 {[%clk 0:01:55]} 14. Ke2 {[%clk 0:02:07]}  Bc5 {[%clk 0:01:48]} 15. Nb3 {[%clk 0:02:05]}  Bb6 {[%clk 0:01:45]} 16. Bg5 {[%clk 0:02:05]}  Rd3 {[%clk 0:01:32]} 17. Nd2 {[%clk 0:01:48]}  Rd7 {[%clk 0:01:24]} 18. Rad1 {[%clk 0:01:39]}  Nd3 {[%clk 0:01:19]} 19. Nc4 {[%clk 0:01:37]}  Nc5 {[%clk 0:01:02]} 20. Rxd7 {[%clk 0:01:18]}  Kxd7 {[%clk 0:01:03]} 21. Rd1+ {[%clk 0:01:17]}  Kc8 {[%clk 0:01:02]} 22. f3 {[%clk 0:01:15]}  Nd7 {[%clk 0:00:52]} 23. b4 {[%clk 0:01:04]}  e5 {[%clk 0:00:45]} 24. Be3 {[%clk 0:00:59]}  Bxe3 {[%clk 0:00:40]} 25. Nxe3 {[%clk 0:00:59]}  c6 {[%clk 0:00:39]} 26. Nf5 {[%clk 0:00:59]}  Nb6 {[%clk 0:00:21]} 27. Nd6+ {[%clk 0:00:56]}  Kc7 {[%clk 0:00:19]} 28. Nf5 {[%clk 0:00:50]}  g6 {[%clk 0:00:17]} 29. Ne3 {[%clk 0:00:50]}  Re8 {[%clk 0:00:15]} 30. Ng4 {[%clk 0:00:50]}  h5 {[%clk 0:00:14]} 31. Ne3 {[%clk 0:00:49]}  Na4 {[%clk 0:00:10]} 32. Rd3 {[%clk 0:00:48]}  Re7 {[%clk 0:00:05]} 33. Nc4 {[%clk 0:00:48]}  b5 {[%clk 0:00:05]} 34. Nd2 {[%clk 0:00:45]}  Nb6 {[%clk 0:00:05]} 35. Nb3 {[%clk 0:00:45]}  Nc4 {[%clk 0:00:05]} 36. Nc5 {[%clk 0:00:45]}  Kb6 {[%clk 0:00:03]} 37. Rd8 {[%clk 0:00:43]}  Kc7 {[%clk 0:00:02]} 38. Ra8 {[%clk 0:00:43]}  Kb6 {[%clk 0:00:02]} 39. Rb8+ {[%clk 0:00:44]}  Kc7 {[%clk 0:00:03]} 40. Rb7+ {[%clk 0:00:44]}  Kd6 {[%clk 0:00:03]} 41. Rxe7 {[%clk 0:00:42]}  Kxe7 {[%clk 0:00:04]} 42. a4 {[%clk 0:00:42]}  bxa4 {[%clk 0:00:04]} 43. Nxa4 {[%clk 0:00:43]}  Nb6 {[%clk 0:00:04]} 44. Nc3 {[%clk 0:00:42]}  Kd6 {[%clk 0:00:04]} 45. Kd3 {[%clk 0:00:42]}  Nd7 {[%clk 0:00:04]} 46. Kc4 {[%clk 0:00:39]}  a6 {[%clk 0:00:04]} 47. Na4 {[%clk 0:00:39]}  Nf6 {[%clk 0:00:03]} 48. Nc5 {[%clk 0:00:39]}  h4 {[%clk 0:00:02]} 49. Nxa6 {[%clk 0:00:31]}  Nh5 {[%clk 0:00:02]} 50. Nc5 {[%clk 0:00:30]}  Nf4 {[%clk 0:00:03]} 51. g3 {[%clk 0:00:31]}  hxg3 {[%clk 0:00:03]} 52. hxg3 {[%clk 0:00:31]}  Ne2 {[%clk 0:00:03]} 53. Nb7+ {[%clk 0:00:24]}  Kc7 {[%clk 0:00:03]} 54. Na5 {[%clk 0:00:25]}  Nxg3 {[%clk 0:00:03]} 55. Kc5 {[%clk 0:00:25]}  Ne2 {[%clk 0:00:02]} 56. Nxc6 {[%clk 0:00:24]}  g5 {[%clk 0:00:02]} 57. Nxe5 {[%clk 0:00:24]}  Nc1 {[%clk 0:00:01]} 58. Kd4 {[%clk 0:00:21]}  Nb3+ {[%clk 0:00:01]} 59. Ke3 {[%clk 0:00:21]}  Kd6 {[%clk 0:00:00]} 60. Nf7+ {[%clk 0:00:21]} 1-0


[Site "https://www.chess.com"]

[Event "Titled Tuesday Blitz May 16 Early 2023"]
[White "Vovk, Orest"]
[Black "Preotu, Razvan"]
[WhiteFideId "14113490"]
[BlackFideId "2613280"]
[WhiteElo "2215"]
[BlackElo "2407"]
[Result "0-1"]
[Round "01"]
[TimeControl "180+2"]
[Date "2023.05.16"]
[WhiteClock "0:00:00"]
[BlackClock "0:00:07"]

1. h4 {[%clk 0:02:54]}  e5 {[%clk 0:02:58]} 2. h5 {[%clk 0:02:50]}  d5 {[%clk 0:02:58]} 3. h6 {[%clk 0:02:49]}  Nxh6 {[%clk 0:02:57]} 4. d4 {[%clk 0:02:50]}  Ng4 {[%clk 0:02:57]} 5. f3 {[%clk 0:02:49]}  Nf6 {[%clk 0:02:48]} 6. dxe5 {[%clk 0:02:49]}  Ng8 {[%clk 0:02:48]} 7. e4 {[%clk 0:02:46]}  Bc5 {[%clk 0:01:32]} 8. Qxd5 {[%clk 0:02:35]}  Qe7 {[%clk 0:01:33]} 9. Nc3 {[%clk 0:02:25]}  c6 {[%clk 0:01:32]} 10. Qd2 {[%clk 0:02:17]}  Qxe5 {[%clk 0:01:31]} 11. Qg5 {[%clk 0:01:51]}  Nd7 {[%clk 0:01:05]} 12. Qxe5+ {[%clk 0:01:43]}  Nxe5 {[%clk 0:01:06]} 13. Bf4 {[%clk 0:01:42]}  Ng6 {[%clk 0:01:05]} 14. Bg3 {[%clk 0:01:39]}  h5 {[%clk 0:01:02]} 15. Bf2 {[%clk 0:01:34]}  Bxf2+ {[%clk 0:00:44]} 16. Kxf2 {[%clk 0:01:35]}  Be6 {[%clk 0:00:43]} 17. Rd1 {[%clk 0:01:31]}  h4 {[%clk 0:00:42]} 18. Nge2 {[%clk 0:01:20]}  Nf6 {[%clk 0:00:40]} 19. Nd4 {[%clk 0:01:19]}  O-O-O {[%clk 0:00:38]} 20. Nxe6 {[%clk 0:01:18]}  Rxd1 {[%clk 0:00:39]} 21. Nxd1 {[%clk 0:01:17]}  fxe6 {[%clk 0:00:40]} 22. Bc4 {[%clk 0:01:16]}  Kd7 {[%clk 0:00:38]} 23. Ne3 {[%clk 0:01:15]}  Ne5 {[%clk 0:00:36]} 24. Bb3 {[%clk 0:01:08]}  g5 {[%clk 0:00:35]} 25. Nc4 {[%clk 0:00:57]}  Nxc4 {[%clk 0:00:35]} 26. Bxc4 {[%clk 0:00:58]}  Ke7 {[%clk 0:00:34]} 27. e5 {[%clk 0:00:51]}  Nd7 {[%clk 0:00:33]} 28. Re1 {[%clk 0:00:51]}  Rf8 {[%clk 0:00:32]} 29. Bd3 {[%clk 0:00:47]}  Rf4 {[%clk 0:00:26]} 30. g3 {[%clk 0:00:38]}  hxg3+ {[%clk 0:00:23]} 31. Kxg3 {[%clk 0:00:39]}  Ra4 {[%clk 0:00:23]} 32. a3 {[%clk 0:00:28]}  Rd4 {[%clk 0:00:08]} 33. Rh1 {[%clk 0:00:20]}  Nxe5 {[%clk 0:00:06]} 34. Rh7+ {[%clk 0:00:19]}  Kd6 {[%clk 0:00:04]} 35. Rxb7 {[%clk 0:00:18]}  Nxd3 {[%clk 0:00:04]} 36. cxd3 {[%clk 0:00:16]}  Rxd3 {[%clk 0:00:05]} 37. Rxa7 {[%clk 0:00:16]}  Rb3 {[%clk 0:00:05]} 38. Rg7 {[%clk 0:00:15]}  Rxb2 {[%clk 0:00:05]} 39. Rxg5 {[%clk 0:00:15]}  c5 {[%clk 0:00:03]} 40. Rg8 {[%clk 0:00:13]}  c4 {[%clk 0:00:03]} 41. Rc8 {[%clk 0:00:12]}  Kd5 {[%clk 0:00:03]} 42. a4 {[%clk 0:00:09]}  Ra2 {[%clk 0:00:03]} 43. Rd8+ {[%clk 0:00:10]}  Kc5 {[%clk 0:00:03]} 44. Rc8+ {[%clk 0:00:10]}  Kb4 {[%clk 0:00:04]} 45. Re8 {[%clk 0:00:08]}  Re2 {[%clk 0:00:02]} 46. Rc8 {[%clk 0:00:05]}  c3 {[%clk 0:00:03]} 47. a5 {[%clk 0:00:05]}  Ra2 {[%clk 0:00:02]} 48. Rb8+ {[%clk 0:00:03]}  Kc4 {[%clk 0:00:01]} 49. Rc8+ {[%clk 0:00:01]}  Kd3 {[%clk 0:00:02]} 50. Rd8+ {[%clk 0:00:02]}  Ke3 {[%clk 0:00:03]} 51. Re8 {[%clk 0:00:02]}  Rxa5 {[%clk 0:00:02]} 52. Rxe6+ {[%clk 0:00:02]}  Kd4 {[%clk 0:00:03]} 53. Re1 {[%clk 0:00:03]}  c2 {[%clk 0:00:03]} 54. f4 {[%clk 0:00:02]}  Kd3 {[%clk 0:00:03]} 55. Rc1 {[%clk 0:00:02]}  Kd2 {[%clk 0:00:03]} 56. Rxc2+ {[%clk 0:00:02]}  Kxc2 {[%clk 0:00:04]} 57. Kg4 {[%clk 0:00:03]}  Kd3 {[%clk 0:00:05]} 58. f5 {[%clk 0:00:04]}  Ke4 {[%clk 0:00:06]} 59. f6 {[%clk 0:00:04]}  Ra7 {[%clk 0:00:06]} 60. Kg5 {[%clk 0:00:04]}  Ke5 {[%clk 0:00:07]} 61. Kg6 {[%clk 0:00:00]}  Ke6 {[%clk 0:00:07]} 0-1


[Site "https://www.chess.com"]

[Event "Titled Tuesday Blitz May 16 Early 2023"]
[White "Badmatsyrenov, Oleg"]
[Black "Pandey Srishti"]
[WhiteFideId "24115762"]
[BlackFideId "35093290"]
[WhiteElo "2396"]
[BlackElo "2123"]
[Result "1-0"]
[Round "01"]
[TimeControl "180+2"]
[Date "2023.05.16"]
[WhiteClock "0:01:18"]
[BlackClock "0:02:13"]

1. e4 {[%clk 0:01:44]}  e5 {[%clk 0:02:58]} 2. Nc3 {[%clk 0:01:44]}  Nf6 {[%clk 0:02:57]} 3. f4 {[%clk 0:01:44]}  d5 {[%clk 0:02:53]} 4. Qe2 {[%clk 0:01:44]}  exf4 {[%clk 0:02:46]} 5. d4 {[%clk 0:01:43]}  dxe4 {[%clk 0:02:43]} 6. Nxe4 {[%clk 0:01:44]}  Nxe4 {[%clk 0:02:38]} 7. Qxe4+ {[%clk 0:01:45]}  Qe7 {[%clk 0:02:38]} 8. Qxe7+ {[%clk 0:01:32]}  Bxe7 {[%clk 0:02:38]} 9. Bxf4 {[%clk 0:01:31]}  Kd8 {[%clk 0:02:38]} 10. Bc4 {[%clk 0:01:26]}  Bf6 {[%clk 0:02:34]} 11. Bxf7 {[%clk 0:01:23]}  Ke7 {[%clk 0:02:25]} 12. Bb3 {[%clk 0:01:20]}  Bxd4 {[%clk 0:02:24]} 13. O-O-O {[%clk 0:01:19]}  Bb6 {[%clk 0:02:13]} 14. Bg5+ {[%clk 0:01:18]} 1-0


[Site "https://www.chess.com"]

[Event "Titled Tuesday Blitz May 16 Early 2023"]
[White "Kushko, Dmitriy"]
[Black "Petrova, Irina"]
[WhiteFideId "14162261"]
[BlackFideId "14124122"]
[WhiteElo "2230"]
[BlackElo "2084"]
[Result "1-0"]
[Round "01"]
[TimeControl "180+2"]
[Date "2023.05.16"]
[WhiteClock "0:00:28"]
[BlackClock "0:00:08"]

1. f4 {[%clk 0:03:00]}  d5 {[%clk 0:02:46]} 2. Nf3 {[%clk 0:03:00]}  Nc6 {[%clk 0:02:46]} 3. e3 {[%clk 0:02:59]}  Bg4 {[%clk 0:02:46]} 4. Bb5 {[%clk 0:02:58]}  Nf6 {[%clk 0:02:42]} 5. h3 {[%clk 0:02:57]}  Bd7 {[%clk 0:02:41]} 6. d4 {[%clk 0:02:53]}  a6 {[%clk 0:02:38]} 7. Bd3 {[%clk 0:02:52]}  g6 {[%clk 0:02:34]} 8. c3 {[%clk 0:02:40]}  Bg7 {[%clk 0:02:34]} 9. O-O {[%clk 0:02:40]}  O-O {[%clk 0:02:32]} 10. Qc2 {[%clk 0:02:31]}  b5 {[%clk 0:02:23]} 11. Nbd2 {[%clk 0:02:28]}  b4 {[%clk 0:02:22]} 12. Nb3 {[%clk 0:02:24]}  bxc3 {[%clk 0:02:19]} 13. bxc3 {[%clk 0:02:24]}  a5 {[%clk 0:02:16]} 14. Nc5 {[%clk 0:02:23]}  Be8 {[%clk 0:02:15]} 15. a4 {[%clk 0:02:21]}  Nd7 {[%clk 0:02:12]} 16. Nb3 {[%clk 0:02:19]}  Nb6 {[%clk 0:02:09]} 17. Ba3 {[%clk 0:02:12]}  Bd7 {[%clk 0:01:57]} 18. Nc5 {[%clk 0:02:09]}  Nc4 {[%clk 0:01:55]} 19. Bxc4 {[%clk 0:02:05]}  dxc4 {[%clk 0:01:56]} 20. Nd2 {[%clk 0:01:54]}  Bf5 {[%clk 0:01:54]} 21. e4 {[%clk 0:01:51]}  Bc8 {[%clk 0:01:33]} 22. Kh1 {[%clk 0:01:51]}  Ba6 {[%clk 0:01:24]} 23. Rab1 {[%clk 0:01:46]}  Re8 {[%clk 0:00:42]} 24. Nxa6 {[%clk 0:01:29]}  Rxa6 {[%clk 0:00:43]} 25. Nxc4 {[%clk 0:01:28]}  Qd7 {[%clk 0:00:24]} 26. d5 {[%clk 0:01:24]}  Nb8 {[%clk 0:00:22]} 27. Ne5 {[%clk 0:01:14]}  Bxe5 {[%clk 0:00:20]} 28. fxe5 {[%clk 0:01:14]}  c6 {[%clk 0:00:21]} 29. Qf2 {[%clk 0:00:54]}  e6 {[%clk 0:00:20]} 30. d6 {[%clk 0:00:53]}  c5 {[%clk 0:00:20]} 31. Bxc5 {[%clk 0:00:35]}  Nc6 {[%clk 0:00:19]} 32. Bd4 {[%clk 0:00:33]}  Nxd4 {[%clk 0:00:16]} 33. cxd4 {[%clk 0:00:33]}  Ra7 {[%clk 0:00:16]} 34. Rb5 {[%clk 0:00:28]}  Rb8 {[%clk 0:00:08]} 35. Rxb8+ {[%clk 0:00:28]} 1-0


[Site "https://www.chess.com"]

[Event "Titled Tuesday Blitz May 16 Early 2023"]
[White "Papasimakopoulos, Alexandros"]
[Black "Kohler, Aran"]
[WhiteFideId "4244125"]
[BlackFideId "1002856"]
[WhiteElo "2359"]
[BlackElo "2396"]
[Result "1/2-1/2"]
[Round "01"]
[TimeControl "180+2"]
[Date "2023.05.16"]
[WhiteClock "0:00:26"]
[BlackClock "0:00:03"]

1. d4 {[%clk 0:02:55]}  Nf6 {[%clk 0:02:57]} 2. c4 {[%clk 0:02:53]}  e6 {[%clk 0:02:54]} 3. Nc3 {[%clk 0:02:54]}  d5 {[%clk 0:02:54]} 4. cxd5 {[%clk 0:02:54]}  exd5 {[%clk 0:02:54]} 5. Bg5 {[%clk 0:02:55]}  c6 {[%clk 0:02:53]} 6. e3 {[%clk 0:02:55]}  Be7 {[%clk 0:02:53]} 7. Bd3 {[%clk 0:02:55]}  h6 {[%clk 0:02:52]} 8. Bh4 {[%clk 0:02:55]}  O-O {[%clk 0:02:44]} 9. Qc2 {[%clk 0:02:55]}  Re8 {[%clk 0:02:43]} 10. Nf3 {[%clk 0:02:55]}  Ne4 {[%clk 0:02:34]} 11. Bxe7 {[%clk 0:02:48]}  Qxe7 {[%clk 0:02:32]} 12. Bxe4 {[%clk 0:02:49]}  dxe4 {[%clk 0:02:31]} 13. Nd2 {[%clk 0:02:50]}  Bf5 {[%clk 0:02:16]} 14. Nc4 {[%clk 0:02:42]}  Na6 {[%clk 0:02:08]} 15. a3 {[%clk 0:02:41]}  f6 {[%clk 0:01:43]} 16. O-O {[%clk 0:02:37]}  Rad8 {[%clk 0:01:40]} 17. b4 {[%clk 0:02:35]}  Nc7 {[%clk 0:01:39]} 18. f4 {[%clk 0:02:34]}  Nd5 {[%clk 0:01:37]} 19. Nxd5 {[%clk 0:02:28]}  cxd5 {[%clk 0:01:23]} 20. Nd2 {[%clk 0:02:28]}  Rc8 {[%clk 0:01:19]} 21. Qb3 {[%clk 0:02:28]}  Be6 {[%clk 0:01:16]} 22. Rfc1 {[%clk 0:02:28]}  f5 {[%clk 0:01:11]} 23. a4 {[%clk 0:02:23]}  Qd7 {[%clk 0:01:08]} 24. b5 {[%clk 0:02:11]}  g5 {[%clk 0:01:05]} 25. fxg5 {[%clk 0:02:01]}  hxg5 {[%clk 0:01:05]} 26. Rxc8 {[%clk 0:01:59]}  Rxc8 {[%clk 0:01:03]} 27. Rf1 {[%clk 0:02:00]}  Qc7 {[%clk 0:00:52]} 28. Qb4 {[%clk 0:01:59]}  Re8 {[%clk 0:00:29]} 29. a5 {[%clk 0:01:54]}  b6 {[%clk 0:00:24]} 30. axb6 {[%clk 0:01:50]}  axb6 {[%clk 0:00:23]} 31. h3 {[%clk 0:01:45]}  f4 {[%clk 0:00:23]} 32. exf4 {[%clk 0:01:37]}  gxf4 {[%clk 0:00:24]} 33. Qb3 {[%clk 0:01:32]}  f3 {[%clk 0:00:22]} 34. Rf2 {[%clk 0:01:14]}  Qg7 {[%clk 0:00:19]} 35. Kh2 {[%clk 0:01:09]}  Bxh3 {[%clk 0:00:16]} 36. gxh3 {[%clk 0:00:54]}  Qxd4 {[%clk 0:00:14]} 37. Nxe4 {[%clk 0:00:48]}  Qxe4 {[%clk 0:00:12]} 38. Qxf3 {[%clk 0:00:36]}  Qxf3 {[%clk 0:00:11]} 39. Rxf3 {[%clk 0:00:37]}  Re2+ {[%clk 0:00:11]} 40. Kg3 {[%clk 0:00:37]}  Rb2 {[%clk 0:00:12]} 41. h4 {[%clk 0:00:35]}  Rxb5 {[%clk 0:00:11]} 42. Kg4 {[%clk 0:00:32]}  Kg7 {[%clk 0:00:12]} 43. Rc3 {[%clk 0:00:28]}  Kf6 {[%clk 0:00:10]} 44. Rc6+ {[%clk 0:00:26]}  Ke5 {[%clk 0:00:10]} 45. h5 {[%clk 0:00:27]}  Rb1 {[%clk 0:00:09]} 46. h6 {[%clk 0:00:25]}  Rg1+ {[%clk 0:00:09]} 47. Kh5 {[%clk 0:00:26]}  Kf5 {[%clk 0:00:09]} 48. Kh4 {[%clk 0:00:23]}  Rh1+ {[%clk 0:00:09]} 49. Kg3 {[%clk 0:00:23]}  d4 {[%clk 0:00:09]} 50. Rxb6 {[%clk 0:00:23]}  Ke4 {[%clk 0:00:09]} 51. Re6+ {[%clk 0:00:21]}  Kd3 {[%clk 0:00:09]} 52. Kf4 {[%clk 0:00:20]}  Kd2 {[%clk 0:00:09]} 53. Kg5 {[%clk 0:00:20]}  d3 {[%clk 0:00:09]} 54. Kg6 {[%clk 0:00:20]}  Kc1 {[%clk 0:00:08]} 55. Rc6+ {[%clk 0:00:21]}  Kd1 {[%clk 0:00:08]} 56. Kg7 {[%clk 0:00:21]}  d2 {[%clk 0:00:07]} 57. h7 {[%clk 0:00:22]}  Rxh7+ {[%clk 0:00:07]} 58. Kxh7 {[%clk 0:00:23]}  Ke2 {[%clk 0:00:06]} 59. Re6+ {[%clk 0:00:24]}  Kf2 {[%clk 0:00:06]} 60. Rd6 {[%clk 0:00:24]}  Ke2 {[%clk 0:00:06]} 61. Rd5 {[%clk 0:00:25]}  d1=Q {[%clk 0:00:05]} 62. Rxd1 {[%clk 0:00:26]}  Kxd1 {[%clk 0:00:03]} 1/2-1/2


[Site "https://www.chess.com"]

[Event "Titled Tuesday Blitz May 16 Early 2023"]
[White "Gritsenko, Nikolai"]
[Black "Gatterer, Florian"]
[WhiteFideId "14112493"]
[BlackFideId "811688"]
[WhiteElo "2389"]
[BlackElo "2221"]
[Result "1-0"]
[Round "01"]
[TimeControl "180+2"]
[Date "2023.05.16"]
[WhiteClock "0:00:59"]
[BlackClock "0:01:06"]

1. d4 {[%clk 0:03:00]}  d5 {[%clk 0:02:59]} 2. Bf4 {[%clk 0:03:00]}  c5 {[%clk 0:02:59]} 3. e3 {[%clk 0:02:58]}  Nc6 {[%clk 0:02:58]} 4. c3 {[%clk 0:02:58]}  Qb6 {[%clk 0:02:56]} 5. Qc1 {[%clk 0:02:57]}  Nf6 {[%clk 0:02:53]} 6. Nf3 {[%clk 0:02:55]}  Bf5 {[%clk 0:02:51]} 7. dxc5 {[%clk 0:02:53]}  Qxc5 {[%clk 0:02:50]} 8. Nbd2 {[%clk 0:02:53]}  e6 {[%clk 0:02:48]} 9. h3 {[%clk 0:02:52]}  Be7 {[%clk 0:02:39]} 10. Be2 {[%clk 0:02:51]}  O-O {[%clk 0:02:39]} 11. O-O {[%clk 0:02:51]}  a5 {[%clk 0:02:38]} 12. a4 {[%clk 0:02:49]}  Bd6 {[%clk 0:02:25]} 13. Nb3 {[%clk 0:02:46]}  Qb6 {[%clk 0:02:16]} 14. Bxd6 {[%clk 0:02:37]}  Rfd8 {[%clk 0:02:14]} 15. Bc5 {[%clk 0:02:05]}  Qxb3 {[%clk 0:02:12]} 16. Ne1 {[%clk 0:02:01]}  Ne4 {[%clk 0:01:50]} 17. Ra3 {[%clk 0:01:42]}  Nxc5 {[%clk 0:01:43]} 18. Rxb3 {[%clk 0:01:42]}  Nxb3 {[%clk 0:01:44]} 19. Qd1 {[%clk 0:01:42]}  Nc5 {[%clk 0:01:43]} 20. Nd3 {[%clk 0:01:33]}  Nxd3 {[%clk 0:01:40]} 21. Bxd3 {[%clk 0:01:33]}  Bxd3 {[%clk 0:01:40]} 22. Qxd3 {[%clk 0:01:34]}  Ne5 {[%clk 0:01:37]} 23. Qe2 {[%clk 0:01:31]}  g6 {[%clk 0:01:30]} 24. Rd1 {[%clk 0:01:30]}  Rdc8 {[%clk 0:01:29]} 25. e4 {[%clk 0:01:28]}  dxe4 {[%clk 0:01:25]} 26. Qxe4 {[%clk 0:01:28]}  Nc6 {[%clk 0:01:25]} 27. Rd7 {[%clk 0:01:27]}  Rab8 {[%clk 0:01:18]} 28. Qf4 {[%clk 0:01:20]}  Rf8 {[%clk 0:01:18]} 29. h4 {[%clk 0:01:18]}  h5 {[%clk 0:01:17]} 30. g4 {[%clk 0:01:15]}  e5 {[%clk 0:01:11]} 31. Qf6 {[%clk 0:01:09]}  hxg4 {[%clk 0:01:09]} 32. h5 {[%clk 0:01:09]}  gxh5 {[%clk 0:01:09]} 33. Qg5+ {[%clk 0:01:06]}  Kh7 {[%clk 0:01:09]} 34. Rd6 {[%clk 0:01:00]}  f6 {[%clk 0:01:09]} 35. Rd7+ {[%clk 0:01:00]}  Kh8 {[%clk 0:01:06]} 36. Qg7# {[%clk 0:00:59]} 1-0


[Site "https://www.chess.com"]

[Event "Titled Tuesday Blitz May 16 Early 2023"]
[White "Arencibia Monduy, Antonio"]
[Black "Tatarinov, Dmitry"]
[WhiteFideId "3507939"]
[BlackFideId "24160067"]
[WhiteElo "2394"]
[BlackElo "2326"]
[Result "0-1"]
[Round "01"]
[TimeControl "180+2"]
[Date "2023.05.16"]
[WhiteClock "0:00:00"]
[BlackClock "0:01:02"]

1. e4 {[%clk 0:02:59]}  c6 {[%clk 0:01:21]} 2. d4 {[%clk 0:02:55]}  d5 {[%clk 0:01:22]} 3. e5 {[%clk 0:02:55]}  c5 {[%clk 0:01:22]} 4. c3 {[%clk 0:02:54]}  e6 {[%clk 0:01:22]} 5. Nf3 {[%clk 0:02:54]}  Qb6 {[%clk 0:01:22]} 6. Bd3 {[%clk 0:02:53]}  Bd7 {[%clk 0:01:22]} 7. a4 {[%clk 0:02:48]}  Nc6 {[%clk 0:01:19]} 8. dxc5 {[%clk 0:02:36]}  Bxc5 {[%clk 0:01:18]} 9. O-O {[%clk 0:02:35]}  a5 {[%clk 0:01:19]} 10. Na3 {[%clk 0:02:30]}  Nge7 {[%clk 0:01:17]} 11. Nb5 {[%clk 0:02:27]}  Ng6 {[%clk 0:01:18]} 12. Qe2 {[%clk 0:02:19]}  O-O {[%clk 0:01:17]} 13. h4 {[%clk 0:01:56]}  f6 {[%clk 0:01:16]} 14. exf6 {[%clk 0:01:49]}  Rxf6 {[%clk 0:01:16]} 15. h5 {[%clk 0:01:29]}  Nf4 {[%clk 0:01:17]} 16. Bxf4 {[%clk 0:01:22]}  Rxf4 {[%clk 0:01:17]} 17. Qc2 {[%clk 0:00:12]}  h6 {[%clk 0:01:14]} 18. Rae1 {[%clk 0:00:09]}  Raf8 {[%clk 0:01:14]} 19. Re2 {[%clk 0:00:09]}  e5 {[%clk 0:01:01]} 20. Nxe5 {[%clk 0:00:01]}  Nxe5 {[%clk 0:01:01]} 21. Rxe5 {[%clk 0:00:01]}  Rxf2 {[%clk 0:01:02]} 22. Rxf2 {[%clk 0:00:01]}  Rxf2 {[%clk 0:01:02]} 23. Bh7+ {[%clk 0:00:00]}  Kh8 {[%clk 0:01:02]} 0-1


[Site "https://www.chess.com"]